[Event "*** Titled Tuesday Blitz"]
[Site "Chess.com"]
[Date "2020.04.21"]
[Round "6"]
[White "crywolf1986"]
[Black "maxip32"]
[Result "1-0"]
[WhiteElo "2587"]
[BlackElo "2423"]
[TimeControl "180+1"]
[EndTime "11:07:39 PDT"]
[Termination "crywolf1986 won by resignation"]

1. d4 {[%clk 0:03:00.7]} 1... Nf6 {[%clk 0:02:59.5]} 2. Nf3 {[%clk 0:02:56.4]}
2... g6 {[%clk 0:02:59.2]} 3. c4 {[%clk 0:02:56.2]} 3... Bg7 {[%clk 0:02:59]} 4.
g3 {[%clk 0:02:56.5]} 4... O-O {[%clk 0:02:59.2]} 5. Bg2 {[%clk 0:02:56.8]} 5...
d6 {[%clk 0:02:59.7]} 6. O-O {[%clk 0:02:57.2]} 6... Nbd7 {[%clk 0:03:00]} 7.
Nc3 {[%clk 0:02:57.7]} 7... e5 {[%clk 0:03:00.1]} 8. e3 {[%clk 0:02:58.4]} 8...
Re8 {[%clk 0:02:59.5]} 9. b3 {[%clk 0:02:58.4]} 9... exd4 {[%clk 0:02:58.4]} 10.
exd4 {[%clk 0:02:58]} 10... c6 {[%clk 0:02:53.5]} 11. Bf4 {[%clk 0:02:55.7]}
11... d5 {[%clk 0:02:53.1]} 12. Ne5 {[%clk 0:02:54.9]} 12... Nb6 {[%clk
0:02:39.3]} 13. c5 {[%clk 0:02:44.5]} 13... Nbd7 {[%clk 0:02:38.5]} 14. Nxd7
{[%clk 0:02:40.2]} 14... Bxd7 {[%clk 0:02:37.5]} 15. Be5 {[%clk 0:02:40.5]}
15... Bf5 {[%clk 0:02:33]} 16. Re1 {[%clk 0:02:37.7]} 16... Qd7 {[%clk
0:02:32.3]} 17. Qd2 {[%clk 0:02:24.7]} 17... h5 {[%clk 0:02:20.5]} 18. h4 {[%clk
0:02:18.6]} 18... Ne4 {[%clk 0:02:01.5]} 19. Nxe4 {[%clk 0:02:17.4]} 19... dxe4
{[%clk 0:02:02.4]} 20. Bxg7 {[%clk 0:02:16.5]} 20... Kxg7 {[%clk 0:02:02]} 21.
Rad1 {[%clk 0:02:09.1]} 21... Rad8 {[%clk 0:02:01.5]} 22. Qf4 {[%clk 0:02:06.1]}
22... Bg4 {[%clk 0:01:40]} 23. Rd2 {[%clk 0:02:02.6]} 23... f5 {[%clk
0:01:40.1]} 24. Bf1 {[%clk 0:01:54.3]} 24... b5 {[%clk 0:01:27.3]} 25. cxb6
{[%clk 0:01:43.9]} 25... axb6 {[%clk 0:01:27.3]} 26. a4 {[%clk 0:01:44.4]} 26...
Qd6 {[%clk 0:01:17.2]} 27. Qxd6 {[%clk 0:01:39.1]} 27... Rxd6 {[%clk 0:01:16.8]}
28. b4 {[%clk 0:01:39.7]} 28... Red8 {[%clk 0:00:30.4]} 29. a5 {[%clk
0:01:38.4]} 29... bxa5 {[%clk 0:00:31.3]} 30. bxa5 {[%clk 0:01:38]} 30... c5
{[%clk 0:00:23.1]} 31. d5 {[%clk 0:01:31.7]} 31... Rxd5 {[%clk 0:00:15.9]} 32.
Rxd5 {[%clk 0:01:30.7]} 32... Rxd5 {[%clk 0:00:15.9]} 33. a6 {[%clk 0:01:30.7]}
33... Rd7 {[%clk 0:00:15.9]} 34. Rb1 {[%clk 0:01:20.5]} 34... c4 {[%clk
0:00:10.7]} 35. Rb7 {[%clk 0:01:17.6]} 1-0

[Event "*** Titled Tuesday Blitz"]
[Site "Chess.com"]
[Date "2020.04.21"]
[Round "6"]
[White "noblerone"]
[Black "calin_dragomirescu"]
[Result "1-0"]
[WhiteElo "2457"]
[BlackElo "2298"]
[TimeControl "180+1"]
[EndTime "11:07:39 PDT"]
[Termination "noblerone won by resignation"]

1. d4 {[%clk 0:03:00.9]} 1... g6 {[%clk 0:02:59.7]} 2. Nf3 {[%clk 0:03:01.5]}
2... Bg7 {[%clk 0:03:00]} 3. Bg5 {[%clk 0:03:01.5]} 3... Nf6 {[%clk 0:02:59.7]}
4. Nbd2 {[%clk 0:03:01.2]} 4... O-O {[%clk 0:02:59.8]} 5. e3 {[%clk 0:03:01.5]}
5... d6 {[%clk 0:03:00.1]} 6. Bc4 {[%clk 0:03:01.2]} 6... b6 {[%clk 0:02:59.1]}
7. Bxf6 {[%clk 0:03:01]} 7... Bxf6 {[%clk 0:02:57.9]} 8. Bd5 {[%clk 0:03:01.1]}
8... c6 {[%clk 0:02:57.2]} 9. Bb3 {[%clk 0:03:01.5]} 9... d5 {[%clk 0:02:56.4]}
10. c4 {[%clk 0:03:00.6]} 10... e6 {[%clk 0:02:55.2]} 11. O-O {[%clk 0:02:59.1]}
11... Nd7 {[%clk 0:02:54.8]} 12. e4 {[%clk 0:02:59.1]} 12... dxc4 {[%clk
0:02:48.8]} 13. Nxc4 {[%clk 0:02:56.2]} 13... Qc7 {[%clk 0:02:44.1]} 14. e5
{[%clk 0:02:50.1]} 14... Bg7 {[%clk 0:02:43.8]} 15. Nd6 {[%clk 0:02:50.4]} 15...
c5 {[%clk 0:02:34.2]} 16. Rc1 {[%clk 0:02:43.1]} 16... Ba6 {[%clk 0:02:28.8]}
17. Re1 {[%clk 0:02:42.1]} 17... Rad8 {[%clk 0:02:22.2]} 18. Ng5 {[%clk
0:02:40.9]} 18... Bh6 {[%clk 0:01:58.6]} 19. f4 {[%clk 0:02:20.8]} 19... Bxg5
{[%clk 0:01:57.6]} 20. fxg5 {[%clk 0:02:20.8]} 20... Qb8 {[%clk 0:01:57.8]} 21.
Ne4 {[%clk 0:01:40.3]} 21... cxd4 {[%clk 0:01:51.9]} 22. Nf6+ {[%clk 0:01:40.2]}
22... Kg7 {[%clk 0:01:37.8]} 23. Qxd4 {[%clk 0:01:29.6]} 23... Nc5 {[%clk
0:01:28]} 24. Qh4 {[%clk 0:01:27.3]} 24... h5 {[%clk 0:01:11.3]} 25. gxh6+
{[%clk 0:01:26.2]} 25... Kh8 {[%clk 0:01:11.5]} 26. Rxc5 {[%clk 0:01:09]} 26...
bxc5 {[%clk 0:01:06.3]} 27. Nd7 {[%clk 0:01:07.5]} 27... g5 {[%clk 0:00:47.5]}
28. Qxg5 {[%clk 0:01:05.7]} 28... Rg8 {[%clk 0:00:40.1]} 29. Qf6+ {[%clk
0:01:03]} 29... Kh7 {[%clk 0:00:40]} 30. Nxb8 {[%clk 0:00:54.7]} 30... Bb7
{[%clk 0:00:33.9]} 31. Qxf7+ {[%clk 0:00:47.8]} 31... Kxh6 {[%clk 0:00:33.2]}
32. Qf6+ {[%clk 0:00:47]} 32... Kh7 {[%clk 0:00:30.5]} 33. Bc2+ {[%clk
0:00:45.4]} 1-0

[Event "*** Titled Tuesday Blitz"]
[Site "Chess.com"]
[Date "2020.04.21"]
[Round "6"]
[White "bakki78"]
[Black "Mfcyryd"]
[Result "1-0"]
[WhiteElo "2771"]
[BlackElo "2532"]
[TimeControl "180+1"]
[EndTime "11:07:43 PDT"]
[Termination "bakki78 won by resignation"]

1. e4 {[%clk 0:03:00.9]} 1... c6 {[%clk 0:02:57.6]} 2. d4 {[%clk 0:02:59.7]}
2... d5 {[%clk 0:02:56.6]} 3. e5 {[%clk 0:03:00.2]} 3... Bf5 {[%clk 0:02:53.6]}
4. Be2 {[%clk 0:03:00.3]} 4... h6 {[%clk 0:02:50.8]} 5. Nf3 {[%clk 0:02:59.1]}
5... e6 {[%clk 0:02:50.7]} 6. O-O {[%clk 0:02:59.5]} 6... Ne7 {[%clk 0:02:46.6]}
7. c3 {[%clk 0:02:57.4]} 7... g5 {[%clk 0:02:43.4]} 8. Ne1 {[%clk 0:02:55.9]}
8... Bg7 {[%clk 0:02:39.9]} 9. Nd3 {[%clk 0:02:54.3]} 9... Nd7 {[%clk
0:02:39.3]} 10. f4 {[%clk 0:02:54.3]} 10... Ng6 {[%clk 0:02:35.6]} 11. Bh5
{[%clk 0:02:46]} 11... Ndf8 {[%clk 0:02:31.5]} 12. g4 {[%clk 0:02:43]} 12...
Bxd3 {[%clk 0:02:28]} 13. Qxd3 {[%clk 0:02:42.5]} 13... gxf4 {[%clk 0:02:26.9]}
14. Bxf4 {[%clk 0:02:42]} 14... Qd7 {[%clk 0:02:25.7]} 15. Bg3 {[%clk
0:02:39.8]} 15... O-O-O {[%clk 0:02:23.5]} 16. Nd2 {[%clk 0:02:39.1]} 16... Qe7
{[%clk 0:02:14.1]} 17. Qf3 {[%clk 0:02:31]} 17... Rd7 {[%clk 0:01:52.4]} 18. b4
{[%clk 0:02:29.3]} 18... Nh4 {[%clk 0:01:52.1]} 19. Qf2 {[%clk 0:02:26.7]} 19...
Nhg6 {[%clk 0:01:45.3]} 20. Nb3 {[%clk 0:02:21.7]} 20... b6 {[%clk 0:01:43.2]}
21. a4 {[%clk 0:02:21.1]} 21... Nh7 {[%clk 0:01:35.5]} 22. h4 {[%clk 0:02:12.3]}
22... Kb7 {[%clk 0:01:30.1]} 23. b5 {[%clk 0:02:09]} 23... Rc7 {[%clk
0:01:18.1]} 24. a5 {[%clk 0:02:05.4]} 24... cxb5 {[%clk 0:01:14.7]} 25. axb6
{[%clk 0:02:04.5]} 25... axb6 {[%clk 0:01:12.8]} 26. Qa2 {[%clk 0:02:04.3]}
26... Rb8 {[%clk 0:00:58.6]} 27. Qa6+ {[%clk 0:02:00.3]} 27... Kc6 {[%clk
0:00:57.3]} 28. Na5+ {[%clk 0:02:00.8]} 28... Kd7 {[%clk 0:00:56.9]} 29. Qxb5+
{[%clk 0:02:00.6]} 29... Kc8 {[%clk 0:00:52.4]} 30. Rab1 {[%clk 0:01:46.9]}
30... Rxc3 {[%clk 0:00:30.8]} 31. Be1 {[%clk 0:01:39.1]} 31... Rc7 {[%clk
0:00:24.5]} 32. Nc6 {[%clk 0:01:37.7]} 32... Qd7 {[%clk 0:00:14.6]} 33. Nxb8
{[%clk 0:01:37.1]} 33... Qxb5 {[%clk 0:00:14.7]} 34. Rxb5 {[%clk 0:01:37.4]}
34... Kxb8 {[%clk 0:00:15.3]} 35. Bxg6 {[%clk 0:01:33.6]} 35... fxg6 {[%clk
0:00:13.6]} 36. Rxb6+ {[%clk 0:01:34.1]} 36... Ka7 {[%clk 0:00:13.6]} 37. Rxe6
{[%clk 0:01:33.9]} 37... Nf8 {[%clk 0:00:14.5]} 38. Rd6 {[%clk 0:01:29.5]} 38...
Nd7 {[%clk 0:00:13.5]} 39. Rf7 {[%clk 0:01:28]} 1-0

[Event "*** Titled Tuesday Blitz"]
[Site "Chess.com"]
[Date "2020.04.21"]
[Round "6"]
[White "dalmatinac101"]
[Black "Caracternin123"]
[Result "1-0"]
[WhiteElo "2812"]
[BlackElo "2640"]
[TimeControl "180+1"]
[EndTime "11:07:46 PDT"]
[Termination "dalmatinac101 won by checkmate"]

1. e4 {[%clk 0:03:00.9]} 1... Nf6 {[%clk 0:02:59.6]} 2. e5 {[%clk 0:03:00.9]}
2... Nd5 {[%clk 0:02:59.6]} 3. d4 {[%clk 0:03:01.8]} 3... d6 {[%clk 0:03:00]} 4.
Nf3 {[%clk 0:03:02.4]} 4... g6 {[%clk 0:03:00.3]} 5. Bc4 {[%clk 0:03:01.8]} 5...
Nb6 {[%clk 0:03:00.5]} 6. Bb3 {[%clk 0:03:02.3]} 6... Bg7 {[%clk 0:03:01.1]} 7.
a4 {[%clk 0:03:02.5]} 7... a5 {[%clk 0:03:00.6]} 8. Ng5 {[%clk 0:03:02.6]} 8...
e6 {[%clk 0:03:00.7]} 9. f4 {[%clk 0:03:03.2]} 9... dxe5 {[%clk 0:03:00.8]} 10.
fxe5 {[%clk 0:03:03.1]} 10... O-O {[%clk 0:03:00.9]} 11. O-O {[%clk 0:03:03.1]}
11... c5 {[%clk 0:03:00.3]} 12. c3 {[%clk 0:03:03.5]} 12... cxd4 {[%clk
0:03:00.4]} 13. cxd4 {[%clk 0:03:04.4]} 13... Nc6 {[%clk 0:03:00.6]} 14. Be3
{[%clk 0:03:01.4]} 14... Nd5 {[%clk 0:02:59.9]} 15. Bxd5 {[%clk 0:02:59.9]}
15... exd5 {[%clk 0:03:00.8]} 16. Nc3 {[%clk 0:02:02.5]} 16... h6 {[%clk
0:03:00.4]} 17. Nf3 {[%clk 0:02:02.3]} 17... Be6 {[%clk 0:03:00.7]} 18. Ne1
{[%clk 0:01:49.3]} 18... f6 {[%clk 0:02:44]} 19. exf6 {[%clk 0:01:48.1]} 19...
Rxf6 {[%clk 0:02:44.9]} 20. Nf3 {[%clk 0:01:30.3]} 20... Qd7 {[%clk 0:02:14.7]}
21. Qd2 {[%clk 0:01:28.6]} 21... Kh7 {[%clk 0:02:15.1]} 22. Ne5 {[%clk
0:01:22.9]} 22... Rxf1+ {[%clk 0:01:49.3]} 23. Rxf1 {[%clk 0:01:22.2]} 23...
Bxe5 {[%clk 0:01:43.9]} 24. dxe5 {[%clk 0:01:22.7]} 24... d4 {[%clk 0:01:44.5]}
25. Ne4 {[%clk 0:01:22]} 25... Qc7 {[%clk 0:01:31]} 26. Nf6+ {[%clk 0:01:18.8]}
26... Kh8 {[%clk 0:01:31.4]} 27. Bxh6 {[%clk 0:01:04.7]} 27... Qxe5 {[%clk
0:01:28.1]} 28. Qf2 {[%clk 0:00:45.4]} 28... Ne7 {[%clk 0:00:54.1]} 29. Qh4
{[%clk 0:00:40.1]} 29... Nf5 {[%clk 0:00:34]} 30. Rxf5 {[%clk 0:00:39.1]} 30...
Qxf5 {[%clk 0:00:32.8]} 31. Bg5+ {[%clk 0:00:35.7]} 31... Kg7 {[%clk 0:00:29.3]}
32. Qh7+ {[%clk 0:00:35.6]} 32... Kf8 {[%clk 0:00:29.8]} 33. Bh6# {[%clk
0:00:36.5]} 1-0

[Event "*** Titled Tuesday Blitz"]
[Site "Chess.com"]
[Date "2020.04.21"]
[Round "6"]
[White "WinningButNotReally"]
[Black "picturesquecheck"]
[Result "1-0"]
[WhiteElo "2410"]
[BlackElo "2196"]
[TimeControl "180+1"]
[EndTime "11:07:46 PDT"]
[Termination "WinningButNotReally won by resignation"]

1. Nf3 {[%clk 0:03:00.9]} 1... c5 {[%clk 0:02:59.1]} 2. g3 {[%clk 0:03:00.1]}
2... Nc6 {[%clk 0:02:57.6]} 3. Bg2 {[%clk 0:02:59.5]} 3... g6 {[%clk 0:02:57.6]}
4. O-O {[%clk 0:02:57.6]} 4... Bg7 {[%clk 0:02:56.4]} 5. e4 {[%clk 0:02:56.9]}
5... d6 {[%clk 0:02:56.2]} 6. c3 {[%clk 0:02:56.4]} 6... Nf6 {[%clk 0:02:53.4]}
7. Qc2 {[%clk 0:02:55.5]} 7... O-O {[%clk 0:02:52.6]} 8. d4 {[%clk 0:02:55]}
8... Bg4 {[%clk 0:02:52.6]} 9. Be3 {[%clk 0:02:53.1]} 9... Rc8 {[%clk
0:02:48.7]} 10. d5 {[%clk 0:02:48.5]} 10... Bxf3 {[%clk 0:02:41.5]} 11. Bxf3
{[%clk 0:02:47.9]} 11... Ne5 {[%clk 0:02:42]} 12. Be2 {[%clk 0:02:46.9]} 12...
a6 {[%clk 0:02:16.1]} 13. a4 {[%clk 0:02:44.8]} 13... h5 {[%clk 0:02:10.8]} 14.
h3 {[%clk 0:02:41.9]} 14... b5 {[%clk 0:01:57.3]} 15. axb5 {[%clk 0:02:36.5]}
15... axb5 {[%clk 0:01:58.2]} 16. f4 {[%clk 0:02:30.6]} 16... Nc4 {[%clk
0:01:57.2]} 17. Bxc4 {[%clk 0:02:30.4]} 17... bxc4 {[%clk 0:01:56.7]} 18. Na3
{[%clk 0:02:29.6]} 18... Qd7 {[%clk 0:01:47.1]} 19. Kg2 {[%clk 0:02:29.2]} 19...
h4 {[%clk 0:01:36.2]} 20. Nxc4 {[%clk 0:02:19.3]} 20... Qb5 {[%clk 0:01:07.1]}
21. b3 {[%clk 0:02:12.7]} 21... hxg3 {[%clk 0:01:06.2]} 22. Ra7 {[%clk
0:02:00.1]} 22... Rfe8 {[%clk 0:01:01.1]} 23. Ra5 {[%clk 0:01:21.5]} 23... Qb7
{[%clk 0:01:00.3]} 24. Kxg3 {[%clk 0:01:16.9]} 24... Rb8 {[%clk 0:00:58.5]} 25.
Rb1 {[%clk 0:01:15.9]} 25... Nh5+ {[%clk 0:00:58]} 26. Kf3 {[%clk 0:01:09.4]}
26... Ra8 {[%clk 0:00:53.1]} 27. b4 {[%clk 0:01:04.2]} 27... Qd7 {[%clk
0:00:51.8]} 28. Kg2 {[%clk 0:00:58.2]} 28... e6 {[%clk 0:00:37.6]} 29. Nb6
{[%clk 0:00:57.6]} 29... Qb7 {[%clk 0:00:19.4]} 30. Nxa8 {[%clk 0:00:53.1]}
30... exd5 {[%clk 0:00:18.1]} 31. bxc5 {[%clk 0:00:50.3]} 31... dxc5 {[%clk
0:00:16.3]} 32. Rxb7 {[%clk 0:00:49.2]} 1-0

[Event "*** Titled Tuesday Blitz"]
[Site "Chess.com"]
[Date "2020.04.21"]
[Round "6"]
[White "Larina_Marija"]
[Black "ShieldingOff"]
[Result "0-1"]
[WhiteElo "2243"]
[BlackElo "2022"]
[TimeControl "180+1"]
[EndTime "11:07:51 PDT"]
[Termination "ShieldingOff won by resignation"]

1. e4 {[%clk 0:03:00]} 1... c5 {[%clk 0:02:59.4]} 2. Nc3 {[%clk 0:02:59.5]} 2...
Nc6 {[%clk 0:02:59]} 3. g3 {[%clk 0:02:58.7]} 3... g6 {[%clk 0:02:58.7]} 4. Bg2
{[%clk 0:02:58.7]} 4... Bg7 {[%clk 0:02:59.3]} 5. d3 {[%clk 0:02:58.2]} 5... d6
{[%clk 0:02:59.5]} 6. Be3 {[%clk 0:02:58.2]} 6... e6 {[%clk 0:02:59.6]} 7. Qd2
{[%clk 0:02:57.7]} 7... Nge7 {[%clk 0:03:00]} 8. Bh6 {[%clk 0:02:56.4]} 8... O-O
{[%clk 0:03:00.1]} 9. Nge2 {[%clk 0:02:53.3]} 9... Nd4 {[%clk 0:02:57.2]} 10.
Bxg7 {[%clk 0:02:52.6]} 10... Kxg7 {[%clk 0:02:56.2]} 11. Nxd4 {[%clk
0:02:50.2]} 11... cxd4 {[%clk 0:02:56.2]} 12. Ne2 {[%clk 0:02:51.1]} 12... e5
{[%clk 0:02:56.2]} 13. f4 {[%clk 0:02:50.4]} 13... Bd7 {[%clk 0:02:40.9]} 14.
O-O {[%clk 0:02:50]} 14... Rc8 {[%clk 0:02:37.7]} 15. c4 {[%clk 0:02:47.3]}
15... b5 {[%clk 0:02:18]} 16. b3 {[%clk 0:02:45.2]} 16... bxc4 {[%clk
0:02:15.2]} 17. bxc4 {[%clk 0:02:44.3]} 17... Rb8 {[%clk 0:02:15.3]} 18. Rab1
{[%clk 0:02:42.9]} 18... Qc7 {[%clk 0:02:11.7]} 19. h3 {[%clk 0:02:38.9]} 19...
Rb6 {[%clk 0:02:04.9]} 20. Rb3 {[%clk 0:02:35.9]} 20... Rfb8 {[%clk 0:02:03.7]}
21. Rfb1 {[%clk 0:02:35.6]} 21... Nc6 {[%clk 0:01:59]} 22. Rxb6 {[%clk
0:02:33.4]} 22... Rxb6 {[%clk 0:01:58.4]} 23. Rxb6 {[%clk 0:02:30.5]} 23... Qxb6
{[%clk 0:01:57.9]} 24. Kh2 {[%clk 0:02:26.8]} 24... Qb1 {[%clk 0:01:54]} 25. g4
{[%clk 0:02:25.9]} 25... Nb4 {[%clk 0:01:49.9]} 26. Nc1 {[%clk 0:02:21.9]} 26...
Nc2 {[%clk 0:01:47.8]} 27. f5 {[%clk 0:02:06.7]} 27... Ne3 {[%clk 0:01:44.2]}
28. Ne2 {[%clk 0:01:43.6]} 28... h5 {[%clk 0:01:36.3]} 29. g5 {[%clk 0:01:28.3]}
29... gxf5 {[%clk 0:01:34.6]} 30. exf5 {[%clk 0:01:29.2]} 30... Bxf5 {[%clk
0:01:30.4]} 31. Ng3 {[%clk 0:01:28.2]} 31... Bxd3 {[%clk 0:01:16.4]} 32. Qf2
{[%clk 0:01:23.2]} 32... Bg6 {[%clk 0:01:09.1]} 33. Qf6+ {[%clk 0:01:11.8]}
33... Kh7 {[%clk 0:01:08.2]} 34. Nxh5 {[%clk 0:01:08.5]} 34... Bxh5 {[%clk
0:01:05.3]} 35. Qh6+ {[%clk 0:01:01.1]} 35... Kg8 {[%clk 0:01:04.5]} 36. Qxh5
{[%clk 0:00:59.5]} 36... Qc2 {[%clk 0:00:57.3]} 37. Qf3 {[%clk 0:00:58.5]} 37...
Nxg2 {[%clk 0:00:44]} 38. Qxg2 {[%clk 0:00:57.6]} 38... d3 {[%clk 0:00:44.2]}
0-1

[Event "*** Titled Tuesday Blitz"]
[Site "Chess.com"]
[Date "2020.04.21"]
[Round "6"]
[White "RubensCezila"]
[Black "nekotyanof"]
[Result "0-1"]
[WhiteElo "2416"]
[BlackElo "2277"]
[TimeControl "180+1"]
[EndTime "11:07:55 PDT"]
[Termination "nekotyanof won by resignation"]

1. c4 {[%clk 0:03:00.9]} 1... Nf6 {[%clk 0:02:59.1]} 2. Nc3 {[%clk 0:03:00.9]}
2... e5 {[%clk 0:02:58.7]} 3. g3 {[%clk 0:02:59.2]} 3... Nc6 {[%clk 0:02:58.6]}
4. Bg2 {[%clk 0:02:59]} 4... Bc5 {[%clk 0:02:58.3]} 5. d3 {[%clk 0:02:54.7]}
5... O-O {[%clk 0:02:57.2]} 6. Nf3 {[%clk 0:02:54.1]} 6... Re8 {[%clk
0:02:56.3]} 7. O-O {[%clk 0:02:53.8]} 7... a6 {[%clk 0:02:54.3]} 8. a3 {[%clk
0:02:50.4]} 8... d6 {[%clk 0:02:51.7]} 9. Bd2 {[%clk 0:02:43.7]} 9... Bf5 {[%clk
0:02:51]} 10. b4 {[%clk 0:02:40.7]} 10... Ba7 {[%clk 0:02:50.1]} 11. Rc1 {[%clk
0:02:40.1]} 11... Rb8 {[%clk 0:02:48.3]} 12. Nh4 {[%clk 0:02:32.5]} 12... Bd7
{[%clk 0:02:47.6]} 13. Nd5 {[%clk 0:02:30]} 13... Nxd5 {[%clk 0:02:45.1]} 14.
cxd5 {[%clk 0:02:29.6]} 14... Nd4 {[%clk 0:02:44]} 15. e3 {[%clk 0:02:18.7]}
15... Nf5 {[%clk 0:02:42.1]} 16. Nf3 {[%clk 0:01:49.2]} 16... Rc8 {[%clk
0:02:35.7]} 17. Qb3 {[%clk 0:01:45.8]} 17... c6 {[%clk 0:02:34.3]} 18. Ne1
{[%clk 0:01:33.1]} 18... cxd5 {[%clk 0:02:30.9]} 19. Bxd5 {[%clk 0:01:31.5]}
19... Qf6 {[%clk 0:02:23.6]} 20. Bxb7 {[%clk 0:01:26.2]} 20... Rxc1 {[%clk
0:02:15.4]} 21. Bxc1 {[%clk 0:01:27.1]} 21... h5 {[%clk 0:02:11]} 22. Qc4 {[%clk
0:01:16.6]} 22... Bb5 {[%clk 0:01:51.7]} 23. Qe4 {[%clk 0:01:09.6]} 23... Ne7
{[%clk 0:01:48.7]} 24. Bb2 {[%clk 0:00:57]} 24... Rb8 {[%clk 0:01:44]} 25. Qf3
{[%clk 0:00:51.2]} 25... Qe6 {[%clk 0:01:37.2]} 26. Qg2 {[%clk 0:00:35.3]} 26...
d5 {[%clk 0:01:34.3]} 27. a4 {[%clk 0:00:35.3]} 27... Bxa4 {[%clk 0:01:30.9]}
28. Bxa6 {[%clk 0:00:35.3]} 28... Qxa6 {[%clk 0:01:29.4]} 29. Bxe5 {[%clk
0:00:34.1]} 29... Rxb4 {[%clk 0:01:29.1]} 30. Qf3 {[%clk 0:00:32.5]} 30... Rb1
{[%clk 0:01:26.3]} 31. Qxh5 {[%clk 0:00:30.5]} 31... Bd1 {[%clk 0:01:12.2]} 32.
Qg5 {[%clk 0:00:26.5]} 32... Ng6 {[%clk 0:01:09.7]} 33. Qd8+ {[%clk 0:00:21.4]}
33... Kh7 {[%clk 0:01:06.8]} 34. f4 {[%clk 0:00:18.1]} 34... Bxe3+ {[%clk
0:01:04.3]} 35. Kh1 {[%clk 0:00:17.4]} 35... Qa2 {[%clk 0:00:59.3]} 0-1

[Event "*** Titled Tuesday Blitz"]
[Site "Chess.com"]
[Date "2020.04.21"]
[Round "6"]
[White "boasovietica"]
[Black "Zoffy13"]
[Result "1-0"]
[WhiteElo "2444"]
[BlackElo "2198"]
[TimeControl "180+1"]
[EndTime "11:07:57 PDT"]
[Termination "boasovietica won on time"]

1. e4 {[%clk 0:03:00.9]} 1... c5 {[%clk 0:02:58.9]} 2. Nf3 {[%clk 0:03:00.3]}
2... d6 {[%clk 0:02:59.1]} 3. Nc3 {[%clk 0:02:59.6]} 3... Nf6 {[%clk 0:02:56.9]}
4. Bb5+ {[%clk 0:03:00]} 4... Nbd7 {[%clk 0:02:56.2]} 5. a4 {[%clk 0:02:56.1]}
5... a6 {[%clk 0:02:55.9]} 6. Bc4 {[%clk 0:02:55.3]} 6... e6 {[%clk 0:02:56.4]}
7. O-O {[%clk 0:02:54.1]} 7... Be7 {[%clk 0:02:55.8]} 8. d3 {[%clk 0:02:53.2]}
8... O-O {[%clk 0:02:52.3]} 9. Ng5 {[%clk 0:02:50.8]} 9... h6 {[%clk 0:02:50.1]}
10. Nh3 {[%clk 0:02:50.4]} 10... Ne5 {[%clk 0:01:51.8]} 11. Ba2 {[%clk
0:02:48.9]} 11... d5 {[%clk 0:01:39.8]} 12. f4 {[%clk 0:02:47.2]} 12... Nc6
{[%clk 0:01:40.1]} 13. e5 {[%clk 0:02:40.3]} 13... Nd7 {[%clk 0:01:39]} 14. Qh5
{[%clk 0:02:29.3]} 14... f6 {[%clk 0:01:29.2]} 15. Nxd5 {[%clk 0:02:24.5]} 15...
exd5 {[%clk 0:01:21.8]} 16. Bxd5+ {[%clk 0:02:25.4]} 16... Kh8 {[%clk
0:01:17.4]} 17. Be4 {[%clk 0:02:21.7]} 17... Nd4 {[%clk 0:00:48.9]} 18. c3
{[%clk 0:01:53.4]} 18... f5 {[%clk 0:00:47.5]} 19. cxd4 {[%clk 0:01:52.8]} 19...
fxe4 {[%clk 0:00:46.2]} 20. d5 {[%clk 0:01:46.9]} 20... Nf6 {[%clk 0:00:23.8]}
21. exf6 {[%clk 0:01:44.1]} 21... Bxf6 {[%clk 0:00:24.7]} 22. dxe4 {[%clk
0:01:42.3]} 22... Bd4+ {[%clk 0:00:19.6]} 23. Kh1 {[%clk 0:01:41.3]} 23... Bxh3
{[%clk 0:00:19.3]} 24. Qxh3 {[%clk 0:01:40.6]} 24... Qe7 {[%clk 0:00:17]} 25.
Qd3 {[%clk 0:01:15.8]} 25... Qd7 {[%clk 0:00:14.4]} 26. Bd2 {[%clk 0:01:09.9]}
26... Rae8 {[%clk 0:00:14.3]} 27. Bc3 {[%clk 0:01:08.6]} 27... Bxc3 {[%clk
0:00:13.7]} 28. bxc3 {[%clk 0:01:08.4]} 28... b5 {[%clk 0:00:10.2]} 29. axb5
{[%clk 0:01:07.1]} 29... axb5 {[%clk 0:00:11.1]} 30. Rab1 {[%clk 0:01:06.1]}
30... c4 {[%clk 0:00:11]} 31. Qd4 {[%clk 0:01:04.6]} 31... Rf7 {[%clk
0:00:09.9]} 32. Rbe1 {[%clk 0:01:03.8]} 32... Rfe7 {[%clk 0:00:10]} 33. e5
{[%clk 0:01:03.7]} 33... Kg8 {[%clk 0:00:02.9]} 34. f5 {[%clk 0:01:02.8]} 1-0

[Event "*** Titled Tuesday Blitz"]
[Site "Chess.com"]
[Date "2020.04.21"]
[Round "6"]
[White "Rud_Makarian"]
[Black "S2PAc"]
[Result "1-0"]
[WhiteElo "2655"]
[BlackElo "2778"]
[TimeControl "180+1"]
[EndTime "11:07:59 PDT"]
[Termination "Rud_Makarian won by resignation"]

1. d4 {[%clk 0:03:00.9]} 1... Nf6 {[%clk 0:02:59.6]} 2. c4 {[%clk 0:03:01.1]}
2... b6 {[%clk 0:03:00]} 3. f3 {[%clk 0:02:58.9]} 3... Nc6 {[%clk 0:02:59.3]} 4.
Nc3 {[%clk 0:02:59.3]} 4... e5 {[%clk 0:02:59]} 5. d5 {[%clk 0:02:59.8]} 5...
Na5 {[%clk 0:02:59.5]} 6. e3 {[%clk 0:02:57.7]} 6... Bb4 {[%clk 0:02:57.2]} 7.
Qc2 {[%clk 0:02:54.2]} 7... O-O {[%clk 0:02:52]} 8. Bd3 {[%clk 0:02:51.5]} 8...
Re8 {[%clk 0:02:50.9]} 9. Ne2 {[%clk 0:02:50.6]} 9... Nb7 {[%clk 0:02:46.7]} 10.
a3 {[%clk 0:02:39.2]} 10... Bxc3+ {[%clk 0:02:45]} 11. Nxc3 {[%clk 0:02:40.1]}
11... Nc5 {[%clk 0:02:43.5]} 12. Be2 {[%clk 0:02:39.5]} 12... a5 {[%clk
0:02:39.5]} 13. b3 {[%clk 0:02:39.6]} 13... e4 {[%clk 0:02:39.9]} 14. O-O {[%clk
0:02:37.8]} 14... d6 {[%clk 0:02:37.5]} 15. f4 {[%clk 0:02:37.5]} 15... Bg4
{[%clk 0:02:35.4]} 16. Bb2 {[%clk 0:02:31.9]} 16... Qd7 {[%clk 0:02:26.7]} 17.
h3 {[%clk 0:02:30.1]} 17... Bxe2 {[%clk 0:01:59.4]} 18. Nxe2 {[%clk 0:02:29.3]}
18... Qd8 {[%clk 0:01:55.7]} 19. Bd4 {[%clk 0:02:23.3]} 19... Nfd7 {[%clk
0:01:45.1]} 20. Nc3 {[%clk 0:02:17.9]} 20... Qe7 {[%clk 0:01:36.5]} 21. Nb5
{[%clk 0:02:10.5]} 21... Nf8 {[%clk 0:01:25.9]} 22. Bc3 {[%clk 0:02:03.7]} 22...
f5 {[%clk 0:01:20.6]} 23. Nd4 {[%clk 0:02:01.9]} 23... Qf7 {[%clk 0:01:20.8]}
24. g4 {[%clk 0:02:00.6]} 24... fxg4 {[%clk 0:01:17.5]} 25. hxg4 {[%clk
0:02:01.5]} 25... Nfd7 {[%clk 0:01:11.3]} 26. Qg2 {[%clk 0:01:52]} 26... Nf8
{[%clk 0:01:07.8]} 27. Nf5 {[%clk 0:01:32.3]} 27... Ng6 {[%clk 0:00:22.7]} 28.
Nxg7 {[%clk 0:01:23.5]} 28... Nh4 {[%clk 0:00:20.4]} 29. Qh3 {[%clk 0:01:17]}
29... Nf3+ {[%clk 0:00:20.6]} 30. Kg2 {[%clk 0:01:12.8]} 30... Nxb3 {[%clk
0:00:17.5]} 31. Rh1 {[%clk 0:01:01.5]} 31... Qg6 {[%clk 0:00:17.3]} 32. f5
{[%clk 0:01:01.6]} 32... Ng5 {[%clk 0:00:13.6]} 33. fxg6 {[%clk 0:00:54.7]}
33... Nxh3 {[%clk 0:00:13.4]} 34. Rxh3 {[%clk 0:00:53.1]} 34... hxg6 {[%clk
0:00:12.1]} 35. Rah1 {[%clk 0:00:51]} 1-0